Cogmind - Beta 13 @@@ ROGUE MODE // 2024.04.09 @ 19:07:02 Player: Phosphophyllite Result: Destroyed by B-75 Beast with Magnetic Acceleration Cannon Performance ------------- Evolutions (5) 2500 Regions Visited (12) 2400 Robots Destroyed (45) 225 Value Destroyed (1700) 1700 Prototype IDs (6) 120 Alien Tech Used (0) 0 Bonus (1218) 1218 TOTAL SCORE: 8163 Bonus ------- High Alert Combat Kills 89 Follower Combat Kills 1129 Cogmind --------- Core Integrity 0/1000 Matter 290/300 Energy 99/100 System Corruption 0% Temperature Cool (12) Movement Core (100) Ox1 Location -5/Upper Caves Parts ------- > --- POWER (2) -------- (None) > --- PROPULSION (4) --- (None) > --- UTILITY (9) ------ Improved Sensor Array Improved Signal Interpreter Makeshift Salvage Targeting Computer Improved Target Analyzer > --- WEAPON (2) ------- Makeshift Sword Makeshift Sword > --- INVENTORY (5) ---- Reinforced Deuterium Engine System Restoration Module Makeshift Shrapnel Gun Improved Datajack Peak State ------------ > --- POWER ------------ Micro Nuclear Core Micro Fission Core > --- PROPULSION ------- Improved Gravmag System Gravmag Array Antigrav System > --- UTILITY ---------- Advanced Cooling System Advanced Sensor Array Improved Signal Interpreter Active Sensor Suite Energy Filter Advanced ECM Suite Improved Corruption Screen > --- WEAPON ----------- Disruptor Cannon Bore Cannon > --- INVENTORY -------- Linear Gravjet Tesla Rifle Wave Gun Improved Datajack Axe [Rating: 99] Favorites ----------- Power Ion Engine Engine Ion Engine Power Core Micro Fission Core Propulsion Light Treads Treads Light Treads Leg Aluminum Leg Hover Unit Hover Unit Flight Unit Xenon Bombardment Thruster Utility Improved Signal Interpreter Device Sensor Array Storage Small Storage Unit Processor Improved Signal Interpreter Hackware Hacking Suite Protection Core Shielding Weapon Improved Datajack Energy Gun Small Laser Energy Cannon Disruptor Cannon Ballistic Gun Assault Rifle Ballistic Cannon Bore Cannon Launcher Grenade Launcher Slashing Weapon Makeshift Sword Special Melee Weapon Improved Datajack Build | -11 -10 -10 -9 -9 -8 -7 -6 -5 -5 -5 -5 -5 ------- Run | Yrd Mat Min Mat Sto Mat Fac Fac Fac Was Fac Upp Upp Slots Evolved 10 | . . . 2 . 2 2 2 2 . . . . Power 1 | . . . . . . . . 1 . . . . Propulsion 2 | . . . . . 1 1 . . . . . . Utility 7 | . . . 2 . 1 1 2 1 . . . . Weapon . | . . . . . . . . . . . . . Parts Attached 122 | 7 2 2 6 15 5 21 10 1 7 27 18 1 Power 14 | 1 . . . 4 1 3 1 1 . 3 . . Engine 7 | 1 . . . 4 1 1 . . . . . . Core 7 | . . . . . . 2 1 1 . 3 . . Reactor . | . . . . . . . . . . . . . Propulsion 30 | 2 . . . 2 2 8 7 . 2 5 2 . Treads 2 | 2 . . . . . . . . . . . . Leg 8 | . . . . 2 . 5 1 . . . . . Wheel . | . . . . . . . . . . . . . Hover 12 | . . . . . 2 2 . . 2 5 1 . Flight 8 | . . . . . . 1 6 . . . 1 . Utility 32 | 2 . . 3 3 1 6 2 . 2 8 4 1 Device 21 | 1 . . 1 1 1 4 2 . 2 6 2 1 Storage 1 | 1 . . . . . . . . . . . . Processor 5 | . . . . . . 1 . . . 2 2 . Hackware 1 | . . . 1 . . . . . . . . . Protection 4 | . . . 1 2 . 1 . . . . . . Artifact . | . . . . . . . . . . . . . Weapon 46 | 2 2 2 3 6 1 4 . . 3 11 12 . Energy Gun 13 | . 1 1 2 2 . 2 . . . 3 2 . Energy Cannon 5 | . . . . 1 . . . . . 2 2 . Ballistic Gun 4 | 2 . . . 2 . . . . . . . . Ballistic Cannon 6 | . . . . . . 1 . . 2 3 . . Launcher 5 | . 1 1 1 1 . 1 . . . . . . Special Weapon . | . . . . . . . . . . . . . Impact Weapon . | . . . . . . . . . . . . . Slashing Weapon 8 | . . . . . . . . . . 2 6 . Piercing Weapon . | . . . . . . . . . . . . . Special Melee Weapon 5 | . . . . . 1 . . . 1 1 2 . Unidentified Prototypes 6 | . . . . 2 . 2 . . 1 1 . . Parts Lost 54 | . . . . 9 . 16 4 4 . 8 12 1 Power 8 | . . . . 1 . 3 . 1 . 1 2 . Propulsion 17 | . . . . 1 . 5 2 2 . 2 4 1 Utility 18 | . . . . 3 . 6 2 1 . 3 3 . Weapon 11 | . . . . 4 . 2 . . . 2 3 . Highest Loss Streak 10 | . . . . 7 . 6 3 4 . 8 10 1 To Critical Strikes . | . . . . . . . . . . . . . Average Slot Usage (%) 68 | . 100 100 99 88 70 73 49 33 43 77 45 32 Engine 5 | . 14 14 11 10 9 5 . . . . . . Core 2 | . . . . . . . 4 4 5 10 2 . Treads 4 | . 28 28 22 4 . . . . . . . . Leg 3 | . . . . 13 . 11 4 . . . . . Hover 6 | . . . . . 18 6 1 . 9 16 2 . Flight 2 | . . . . . . . 16 17 5 2 3 . Device 11 | . 14 14 22 10 8 12 6 . 4 24 7 1 Storage 5 | . 14 14 11 11 9 7 . . . . . . Processor 6 | . . . . . . 6 6 5 5 10 16 17 Hackware 3 | . . . 1 11 9 7 6 3 . . . . Protection 3 | . . . 9 8 9 6 . . . . . . Energy Gun 2 | . 6 14 6 7 . . . . . . 1 . Energy Cannon 1 | . . . . 6 . . . . . . 2 . Ballistic Gun 2 | . 19 14 11 3 . . . . . . . . Ballistic Cannon 1 | . . . . . . 1 . . 4 4 . . Slashing Weapon 1 | . . . . . . . . . . . 5 11 Special Melee Weapon 2 | . . . . . 7 5 . . 3 4 . . Naked Turns . | . . . . . . . . . . . . . Heaviest Build 42 | 14 16 14 20 25 11 20 17 10 18 42 34 5 Greatest Support 41 | 40 40 40 40 40 12 40 24 24 18 41 40 4 Greatest Overweight (x) 5 | . . . . 5 . 4 . . 1 1 4 1 Average Overweight (x) . | . . . . . . . . . . . . . Largest Inventory Capacity 8 | 8 8 8 8 8 8 8 5 5 5 5 5 5 Average Capacity 6 | 7 8 8 8 8 8 7 5 5 5 5 5 5 Most Carried 8 | 8 8 8 8 8 8 8 5 5 5 5 5 5 Average Carried 6 | 7 7 8 7 7 7 6 4 5 3 4 3 4 Final Capacity 8 | 8 8 8 8 8 8 5 5 5 5 5 5 5 Final Carried 8 | 7 8 8 8 7 8 5 5 5 5 4 4 4 Class Distribution -------------------- 61% | Mutant 28% | Scavenger-Mutant 3% | Commander-Mutant Dominant Class ---------------- Mutant | -10/Materials Mutant | -10/Mines Mutant | -9/Materials Scavenger-Mutant | -9/Storage Scavenger-Mutant | -8/Materials Scavenger-Mutant | -7/Factory Mutant | -6/Factory Sprinter | -5/Factory Mutant | -5/Waste Mutant | -5/Factory Mutant | -5/Upper Caves Mutant | -5/Upper Caves Resources | -11 -10 -10 -9 -9 -8 -7 -6 -5 -5 -5 -5 -5 ----------- Run | Yrd Mat Min Mat Sto Mat Fac Fac Fac Was Fac Upp Upp Matter Collected 1629 | 318 31 50 62 280 . 45 . . 357 326 95 65 Remotely . | . . . . . . . . . . . . . Salvage Created 1540 | 130 110 85 107 412 . 87 . . . 364 245 . Parts 101 | 10 5 . 10 33 . 8 . . . 23 12 . Haulers Intercepted . | . . . . . . . . . . . . . Recyclers Shooed 1 | 1 . . . . . . . . . . . . Parts Field Recycled . | . . . . . . . . . . . . . Retrieved Matter . | . . . . . . . . . . . . . Parts Self-Destructed 12 | . . . . . . . . . . . 12 . Prevented 2 | . . . . . . . . . . . 2 . Kills | -11 -10 -10 -9 -9 -8 -7 -6 -5 -5 -5 -5 -5 ------- Run | Yrd Mat Min Mat Sto Mat Fac Fac Fac Was Fac Upp Upp Combat Hostiles Destroyed 36 | . 3 2 3 13 . 3 . . . 6 6 . Melee 3 | . . . . . . . . . . 1 2 . Guns 15 | . 1 1 3 6 . . . . . 2 2 . Cannons 10 | . . . . 4 . 2 . . . 3 1 . AOE 6 | . 2 1 . 2 . 1 . . . . . . Classes Destroyed 11 | 2 1 . 2 2 . 2 . . . 2 . . Worker 2 | . . . . 2 . . . . . . . . Builder 1 | . . . . . . . . . . 1 . . Tunneler 3 | 3 . . . . . . . . . . . . Recycler 1 | 1 . . . . . . . . . . . . Operator 2 | . . . 1 1 . . . . . . . . Swarmer 5 | . . . . . . 1 . . . . 4 . Grunt 17 | . 3 2 2 10 . . . . . . . . Duelist 2 | . . . . 1 . 1 . . . . . . Sentry 4 | . . . 1 2 . . . . . 1 . . Hunter 6 | . . . . . . . . . . 4 2 . Programmer 2 | . . . . . . 1 . . . 1 . . Best Kill Streak 8 | 2 2 2 3 8 . 1 . . . 4 2 . Combat Bots Only 5 | . 2 2 2 5 . 1 . . . 4 2 . Max Kills in Single Turn 2 | 1 2 1 1 2 . 1 . . . 2 1 . Gunslinging . | . . . . . . . . . . . . . Exploded 2 | . 2 1 . 1 . 1 . . . . . . Melee 1 | . . . . . . . . . . 1 1 . Uniques/NPCs Destroyed . | . . . . . . . . . . . . . Combat | -11 -10 -10 -9 -9 -8 -7 -6 -5 -5 -5 -5 -5 -------- Run | Yrd Mat Min Mat Sto Mat Fac Fac Fac Was Fac Upp Upp Hostile Shots Fired 629 | . 4 9 19 104 4 141 86 19 . 89 124 30 Missed 220 | . 1 1 5 24 1 51 50 10 . 27 40 10 Damage Taken 6179 | . 39 140 192 1126 42 1420 490 219 . 984 1156 371 Core 1759 | . . . 34 276 12 324 102 85 . 188 393 345 Absorbed by Shields 162 | . . . . 12 . . . . . . 150 . Redirected to Shielding 44 | . . . . 23 2 19 . . . . . . Regen/Repaired (Parts) 52 | . . . . 8 2 42 . . . . . . Core Remaining (%) 76 | 100 . 100 . 22 97 53 88 . . . . . Volleys Fired 117 | 12 6 5 11 31 . 17 . . . 26 9 . Largest 2 | 2 2 2 2 2 . 1 . . . 2 2 . Hottest 162 | 40 60 60 85 108 . 48 . . . 162 125 . Shots Fired 186 | 24 12 10 22 51 . 18 . . . 35 14 . Gun 121 | 24 11 8 19 35 . 5 . . . 8 11 . Cannon 54 | . . . . 11 . 13 . . . 27 3 . Launcher 11 | . 1 2 3 5 . . . . . . . . Special . | . . . . . . . . . . . . . Kinetic 89 | 24 8 5 11 10 . 13 . . . 18 . . Thermal 55 | . 3 3 8 36 . . . . . 5 . . Explosive 11 | . 1 2 3 5 . . . . . . . . Electromagnetic 31 | . . . . . . 5 . . . 12 14 . Robot Hit Streak 9 | 8 1 6 5 9 . 3 . . . 7 4 . Robot Miss Streak 10 | 1 2 2 4 10 . 4 . . . 3 3 . Penetration Max 1 | . . . . . . . . . . 1 . . Secondary Targets . | . . . . . . . . . . . . . Shots Hit Robots 134 | 17 5 8 16 41 . 11 . . 1 21 14 . Core Hits 97 | 5 3 4 14 46 . 4 . . . 13 8 . Critical Kills 5 | . . . 1 1 . . . . . 3 . . Critical Parts Destroyed 1 | . . . . . . . . . . 1 . . Critical Strikes 8 | . . . 1 1 . 1 . . . 4 1 . Meltdown 1 | . . . . 1 . . . . . . . . Destroy 5 | . . . 1 . . . . . . 4 . . Blast 1 | . . . . . . 1 . . . . . . Corrupt 1 | . . . . . . . . . . . 1 . Melee Attacks 12 | . . . . . . 1 . . 1 1 9 . Impact . | . . . . . . . . . . . . . Slashing 9 | . . . . . . . . . . 1 8 . Piercing . | . . . . . . . . . . . . . Sneak Attacks 1 | . . . . . . 1 . . . . . . Combat Hostiles . | . . . . . . . . . . . . . Follow-up Attacks . | . . . . . . . . . . . . . Damage Inflicted 2792 | 175 127 179 201 937 . 377 . . . 456 340 . Guns 1200 | 175 51 74 175 402 . 8 . . . 174 141 . Cannons 668 | . . . . 167 . 229 . . . 242 30 . Explosions 696 | . 76 105 26 362 . 127 . . . . . . Melee 209 | . . . . . . . . . . 40 169 . Ramming 19 | . . . . 6 . 13 . . . . . . Kinetic 817 | 175 41 51 87 73 . 229 . . . 161 . . Thermal 804 | . 10 23 88 496 . 55 . . . 132 . . Explosive 641 | . 76 105 26 362 . 72 . . . . . . Electromagnetic 302 | . . . . . . 8 . . . 123 171 . Impact . | . . . . . . . . . . . . . Slashing 209 | . . . . . . . . . . 40 169 . Piercing . | . . . . . . . . . . . . . Highest Corruption 12 | . . . . . . 12 . . . . . . Average Corruption 3 | . . . . . . 3 . . . . . . Corruption Purged . | . . . . . . . . . . . . . Corruption Blocked 3 | . . . . . . . . . . 3 . . Effects 9 | . . . . . . 9 . . . . . . Message Errors 2 | . . . . . . 2 . . . . . . Matter Fused 2 | . . . . . . 2 . . . . . . Energy Discharges 2 | . . . . . . 2 . . . . . . Parts Rejected 1 | . . . . . . 1 . . . . . . Data Loss (minor) 1 | . . . . . . 1 . . . . . . Misfires 1 | . . . . . . 1 . . . . . . Overload Shots . | . . . . . . . . . . . . . Overflow Damage 95 | . . . . 25 . 62 . . . . 8 . Projectiles . | . . . . . . . . . . . . . Explosions 87 | . . . . 25 . 62 . . . . . . Melee 8 | . . . . . . . . . . . 8 . Knockbacks 1 | . . . . . . 1 . . . . . . Impact . | . . . . . . . . . . . . . Kinetic 1 | . . . . . . 1 . . . . . . Secondary . | . . . . . . . . . . . . . Self-Inflicted Damage 328 | . 2 30 . 63 . 233 . . . . . . Shots 9 | . 1 2 . 3 . 3 . . . . . . Rammed 3 | . . . . 1 . 2 . . . . . . Targets Rammed 6 | . . . . 2 . 4 . . . . . . Kicked 3 | . . . . 1 . 2 . . . . . . Crushed . | . . . . . . . . . . . . . Highest Temperature 189 | . 6 49 120 189 . . . . . 89 2 . Average Temperature 45 | . 6 26 41 57 . . . . . 18 1 . Received Heat Transfer 839 | . 21 105 78 443 9 102 48 . . 9 . 24 Siege Activations . | . . . . . . . . . . . . . Robots Corrupted 1 | . . . . . . . . . . . 1 . Combat Hostiles 1 | . . . . . . . . . . . 1 . Parts Fried 3 | . . . . . . . . . . . 3 . Impact Corruptions . | . . . . . . . . . . . . . Robots Melted 1 | . . . . 1 . . . . . . . . Combat Hostiles 1 | . . . . 1 . . . . . . . . Parts Melted 1 | . . . . 1 . . . . . . . . Heat Transferred 1176 | . 25 50 110 756 . 50 . . . 185 . . Parts Sabotaged . | . . . . . . . . . . . . . Parts Stolen . | . . . . . . . . . . . . . Parts Stripped . | . . . . . . . . . . . . . Power Chain Reactions 1 | . . . . . . 1 . . . . . . Alert | -11 -10 -10 -9 -9 -8 -7 -6 -5 -5 -5 -5 -5 ------- Run | Yrd Mat Min Mat Sto Mat Fac Fac Fac Was Fac Upp Upp Peak Influence 581 | 20 143 66 86 500 115 61 155 119 41 581 . . Initial 75 | . 13 . 25 35 70 13 . 75 41 . . . Average 96 | 10 75 64 39 318 21 11 27 85 23 189 . . Maximum Alert Level 2 | . . . . 2 . . . . . 2 . . Low Security (%) 80 | 100 100 100 100 20 100 100 100 100 100 49 . . Level 1 11 | . . . . 45 . . . . . 35 . . Level 2 7 | . . . . 33 . . . . . 14 . . Level 3 . | . . . . . . . . . . . . . Level 4 . | . . . . . . . . . . . . . Level 5 . | . . . . . . . . . . . . . High Security . | . . . . . . . . . . . . . Max Security . | . . . . . . . . . . . . . Squads Dispatched 20 | . 1 . 1 8 . 2 2 . . 6 . . Investigation 7 | . . . . 3 . . 2 . . 2 . . Extermination 3 | . . . . . . 2 . . . 1 . . Reinforcement 7 | . 1 . 1 2 . . . . . 3 . . Assault 2 | . . . . 2 . . . . . . . . Garrison 1 | . . . . 1 . . . . . . . . Intercept . | . . . . . . . . . . . . . Searches Triggered . | . . . . . . . . . . . . . Construction Impeded 1 | . . . . . . . . . . 1 . . Haulers Reinforced . | . . . . . . . . . . . . . Active Scanning Responses 1 | . . . . . . . . . . 1 . . Cargo Convoy Interrupts . | . . . . . . . . . . . . . Stealth | -11 -10 -10 -9 -9 -8 -7 -6 -5 -5 -5 -5 -5 --------- Run | Yrd Mat Min Mat Sto Mat Fac Fac Fac Was Fac Upp Upp Distress Signals 7 | . . . 2 1 2 . 1 . . 1 . . Communications Jammed . | . . . . . . . . . . . . . Distress Signals . | . . . . . . . . . . . . . Times Spotted 118 | . 6 2 7 39 6 6 11 9 1 21 7 3 Peak Tracking Total 10 | . 4 2 3 6 6 3 10 8 1 4 5 2 Tactical Retreats 8 | . . . . . 2 1 2 2 . . . 1 Traps | -11 -10 -10 -9 -9 -8 -7 -6 -5 -5 -5 -5 -5 ------- Run | Yrd Mat Min Mat Sto Mat Fac Fac Fac Was Fac Upp Upp Traps Triggered 7 | . . . . 2 . 1 . 2 . 2 . . Indirectly . | . . . . . . . . . . . . . Trap Hack Attempts . | . . . . . . . . . . . . . Triggered . | . . . . . . . . . . . . . Disarmed . | . . . . . . . . . . . . . Reprogrammed . | . . . . . . . . . . . . . Reused . | . . . . . . . . . . . . . Traps Extracted . | . . . . . . . . . . . . . Installed . | . . . . . . . . . . . . . Triggered . | . . . . . . . . . . . . . Machines | -11 -10 -10 -9 -9 -8 -7 -6 -5 -5 -5 -5 -5 ---------- Run | Yrd Mat Min Mat Sto Mat Fac Fac Fac Was Fac Upp Upp Machines Disabled 6 | . . . . 2 . 3 . . . 1 . . Max in Single Turn 2 | . . . . 1 . 2 . . . 1 . . Garrison Access 1 | . . . . 1 . . . . . . . . Machines Repaired . | . . . . . . . . . . . . . Machines Dismantled . | . . . . . . . . . . . . . Machines Sabotaged . | . . . . . . . . . . . . . Overloaded Fab Kills . | . . . . . . . . . . . . . Hacking | -11 -10 -10 -9 -9 -8 -7 -6 -5 -5 -5 -5 -5 --------- Run | Yrd Mat Min Mat Sto Mat Fac Fac Fac Was Fac Upp Upp Machines Accessed 22 | . 1 . 1 7 1 3 4 1 . 3 1 . Terminals 16 | . 1 . 1 6 1 2 1 1 . 3 . . Fabricators 1 | . . . . . . 1 . . . . . . Repair Stations . | . . . . . . . . . . . . . Recycling Units 3 | . . . . . . . 3 . . . . . Scanalyzers . | . . . . . . . . . . . . . Garrison Access 1 | . . . . 1 . . . . . . . . Total Hacks 54 | . 2 . 2 18 4 7 14 1 . 5 1 . Successful 32 | . 1 . 1 7 3 7 8 1 . 3 1 . Failed 22 | . 1 . 1 11 1 . 6 . . 2 . . Catastrophic 3 | . 1 . . 1 . . . . . 1 . . Database Lockouts . | . . . . . . . . . . . . . Manual 23 | . 2 . 2 8 2 4 4 . . 1 . . Terminals 40 | . 2 . 2 15 4 6 5 1 . 5 . . Fabricators 1 | . . . . . . 1 . . . . . . Repair Stations . | . . . . . . . . . . . . . Recycling Units 9 | . . . . . . . 9 . . . . . Scanalyzers . | . . . . . . . . . . . . . Garrison Access 3 | . . . . 3 . . . . . . . . Terminal Hacks 22 | . 1 . 1 6 1 5 3 1 . 3 1 . Record 4 | . . . . . . 1 1 . . 2 . . Robot Analysis 1 | . . . . . . 1 . . . . . . Open Door 3 | . . . . 2 . . . . . . 1 . Recycling Unit Index 2 | . . . . . . . 1 1 . . . . Unreport Threat 7 | . 1 . 1 2 1 1 1 . . . . . Recall Investigation 1 | . . . . . . 1 . . . . . . Zone Layout 4 | . . . . 2 . 1 . . . 1 . . Fabricator Hacks 1 | . . . . . . 1 . . . . . . Network Status 1 | . . . . . . 1 . . . . . . Repair Station Hacks . | . . . . . . . . . . . . . Recycling Unit Hacks 5 | . . . . . . . 5 . . . . . Retrieve Matter 5 | . . . . . . . 5 . . . . . Scanalyzer . | . . . . . . . . . . . . . Garrison Access Hacks 1 | . . . . 1 . . . . . . . . Seal Access 1 | . . . . 1 . . . . . . . . Unauthorized Hacks 3 | . . . . . 2 1 . . . . . . Terminals 3 | . . . . . 2 1 . . . . . . Assimilate 1 | . . . . . 1 . . . . . . . Botnet 2 | . . . . . 1 1 . . . . . . Fabricators . | . . . . . . . . . . . . . Repair Stations . | . . . . . . . . . . . . . Recycling Units . | . . . . . . . . . . . . . Scanalyzers . | . . . . . . . . . . . . . Garrison Access . | . . . . . . . . . . . . . Data Cores Recovered 1 | . . . . . . . . . . 1 . . Used 1 | . . . . . . . . . . 1 . . Hacking Detections 13 | . 1 . . 4 . 2 3 1 . 2 . . Full Trace Events 6 | . 1 . . 2 . . 2 . . 1 . . Feedback Events 1 | . . . . . . . . . . 1 . . Corruption 1 | . . . . . . . . . . 1 . . Feedback Blocked . | . . . . . . . . . . . . . Robot Schematics Acquired . | . . . . . . . . . . . . . Robots Built . | . . . . . . . . . . . . . Authchips . | . . . . . . . . . . . . . Time . | . . . . . . . . . . . . . Total Robot Build Rating . | . . . . . . . . . . . . . Part Schematics Acquired . | . . . . . . . . . . . . . Parts Built . | . . . . . . . . . . . . . Authchips . | . . . . . . . . . . . . . Time . | . . . . . . . . . . . . . Total Part Build Rating . | . . . . . . . . . . . . . Parts Repaired . | . . . . . . . . . . . . . Time . | . . . . . . . . . . . . . Parts Recycled . | . . . . . . . . . . . . . Recycled Matter . | . . . . . . . . . . . . . Retrieved Matter . | . . . . . . . . . . . . . Retrieved Components . | . . . . . . . . . . . . . Parts Scanalyzed . | . . . . . . . . . . . . . Part Schematics Acquired . | . . . . . . . . . . . . . Parts Damaged . | . . . . . . . . . . . . . Bothacking | -11 -10 -10 -9 -9 -8 -7 -6 -5 -5 -5 -5 -5 ------------ Run | Yrd Mat Min Mat Sto Mat Fac Fac Fac Was Fac Upp Upp Used RIF Installer . | . . . . . . . . . . . . . Robots Hacked 1 | . . . . . . 1 . . . . . . Non-combat 1 | . . . . . . 1 . . . . . . Combat . | . . . . . . . . . . . . . Robot Hacks Applied 1 | . . . . . . 1 . . . . . . no_distress 1 | . . . . . . 1 . . . . . . Relay Couplers Released . | . . . . . . . . . . . . . Fabnet Peak Effective % . | . . . . . . . . . . . . . Robots Rewired . | . . . . . . . . . . . . . Allies Hacked . | . . . . . . . . . . . . . Hacks Repelled . | . . . . . . . . . . . . . Allies | -11 -10 -10 -9 -9 -8 -7 -6 -5 -5 -5 -5 -5 -------- Run | Yrd Mat Min Mat Sto Mat Fac Fac Fac Was Fac Upp Upp Total Allies 33 | . . . . 12 . . . . 21 . . . Largest Group 21 | . . . . 10 . . . . 21 21 . . Highest-Rated Group 770 | . . . . 88 . . . . 770 770 . . Highest-Rated Ally 46 | . . . . 31 . . . . 46 46 . . Total Orders . | . . . . . . . . . . . . . Ally Attacks 289 | . . . . 159 . . . . 8 122 . . Total Damage 4371 | . . . . 1735 . . . . 122 2514 . . Kills 45 | . . . . 21 . . . . 1 23 . . Allies Corrupted . | . . . . . . . . . . . . . Allies Melted . | . . . . . . . . . . . . . Intel | -11 -10 -10 -9 -9 -8 -7 -6 -5 -5 -5 -5 -5 ------- Run | Yrd Mat Min Mat Sto Mat Fac Fac Fac Was Fac Upp Upp Robot Analysis Total 1 | . . . . . . 1 . . . . . . Derelict Logs Recovered 3 | . . 1 . . . . . . . . 2 . Drone Launches . | . . . . . . . . . . . . . Drone Recoveries . | . . . . . . . . . . . . . Exploration | -11 -10 -10 -9 -9 -8 -7 -6 -5 -5 -5 -5 -5 ------------- Run | Yrd Mat Min Mat Sto Mat Fac Fac Fac Was Fac Upp Upp Turns Passed 7623 | 269 390 299 380 958 969 863 476 67 706 861 901 484 Spaces Moved 6378 | 136 230 169 134 456 316 721 982 198 876 806 809 545 Core 465 | 10 . . . 6 . 13 . . . . 3 433 Treads 764 | 126 230 169 134 105 . . . . . . . . Legs 594 | . . . . 345 . 249 . . . . . . Wheels . | . . . . . . . . . . . . . Hover 2579 | . . . . . 316 458 86 . 664 806 249 . Flight 1976 | . . . . . . 1 896 198 212 . 557 112 Fastest Speed 31 | 50 160 160 160 120 56 50 31 31 37 45 35 35 Average Speed 80 | 151 160 160 160 137 56 82 44 33 51 63 94 86 Slowest Speed 365 | 160 160 160 160 300 56 365 70 37 117 116 275 100 Overloaded Moves . | . . . . . . . . . . . . . Propulsion Burnouts . | . . . . . . . . . . . . . Robots Hopped 7 | . . . . 1 . . 4 2 . . . . Cave-ins Triggered . | . . . . . . . . . . . . . Exploration Rate (%) 36 | 6 41 42 11 47 29 18 26 9 97 20 76 57 Regions Visited 12 Branch Regions 4 Pre-discovered Areas 1 | . . 1 . . . . . . . . . . Known Exits Taken 2 | . . . . . . . 1 . . . 1 . Unknown Exits Taken 8 | 1 1 1 1 1 1 1 . . . 1 . . Scrap Searched 6 | . . . . . . . . . . . 3 3 Spaces Dug . | . . . . . . . . . . . . . Terrain Destroyed 134 | . 5 21 24 37 . 41 . . . 6 . . Melee . | . . . . . . . . . . . . . Projectile 7 | . . . . . . 1 . . . 6 . . AOE 127 | . 5 21 24 37 . 40 . . . . . . Terrain Rammed . | . . . . . . . . . . . . . Walls Destroyed . | . . . . . . . . . . . . . Machines Disabled . | . . . . . . . . . . . . . Actions | -11 -10 -10 -9 -9 -8 -7 -6 -5 -5 -5 -5 -5 --------- Run | Yrd Mat Min Mat Sto Mat Fac Fac Fac Was Fac Upp Upp Total 8621 | 177 240 187 279 737 1107 969 1017 197 1130 1113 911 557 Wait 1863 | 7 . 12 118 219 782 187 24 . 221 229 54 10 Move 6354 | 135 229 168 133 453 315 720 973 195 875 805 808 545 Hop 6 | . . . . 1 . . 4 1 . . . . Pick Up 78 | 15 2 . 6 10 2 12 4 . 5 13 8 1 Fast Attach 36 | . . . . 4 1 7 6 1 2 12 3 . Attach 53 | 7 . . 3 8 2 11 2 . 4 7 8 1 Detach 5 | . . . . . 1 2 . . 1 . 1 . Swap 33 | . 2 2 3 3 2 3 2 . 1 8 7 . Drop 43 | 1 1 . 5 6 2 5 2 . 5 12 4 . Fire 117 | 12 6 5 11 31 . 17 . . . 26 9 . Melee 12 | . . . . . . 1 . . 1 1 9 . Ram 2 | . . . . . . 2 . . . . . . Kick 3 | . . . . 1 . 2 . . . . . . Crush 1 | . . . . 1 . . . . . . . . Escape Stasis . | . . . . . . . . . . . . . Rewire 15 | . . . . . . . . . 15 . . . Trap . | . . . . . . . . . . . . . Miscellaneous . | . . . . . . . . . . . . . Route ------- -11/Scrapyard -10/Materials (discovered 2 exits: *Mat / [*Min]) -10/Mines -9/Materials -9/Storage -8/Materials -7/Factory -6/Factory -5/Factory -5/Waste -5/Factory (discovered 2 exits: *Upp x2) -5/Upper Caves -5/Upper Caves History --------- Turn | Location | Event 8 | -11/Scrapyard | Discovered new exit (range 14) 270 | -11/Scrapyard | Entered Materials 316 | -10/Materials | Build established: Mutant 476 | -10/Materials | Discovered new exit (range 15) 586 | -10/Materials | Discovered new exit (range 9) 660 | -10/Materials | Entered Mines 852 | -10/Mines | Discovered new exit (range 7) 959 | -10/Mines | Entered Materials 959 | -9/Materials | Evolved 2 slots: Utility x2 1204 | -9/Materials | Discovered new exit (range 15) 1339 | -9/Materials | Entered Storage 1452 | -9/Storage | Met a pair of Derelict thieves 1548 | -9/Storage | Garrison activated, responded to threat 1599 | -9/Storage | Core integrity fell below 50% 1643 | -9/Storage | Lost 7 parts (1p1n2u3w) 1707 | -9/Storage | Assisted by bots powering up and referring to "LRC-V3" 2010 | -9/Storage | Lost 4 allies 2062 | -9/Storage | Found Prototype Protection 2222 | -9/Storage | Identified Lgt. Regenerative Plating 2235 | -9/Storage | Lost 4 allies 2266 | -9/Storage | Build established: Scavenger-Mutant 2269 | -9/Storage | Discovered new exit (range 16) 2297 | -9/Storage | Entered Materials 2297 | -8/Materials | Evolved 2 slots: Propulsion x1, Utility x1 3258 | -8/Materials | Discovered new exit (range 15) 3266 | -8/Materials | Entered Factory 3266 | -7/Factory | Evolved 2 slots: Propulsion x1, Utility x1 3657 | -7/Factory | Lost 6 parts (1p2n2u1w) 3934 | -7/Factory | Found Prototype Launcher 3959 | -7/Factory | Identified Rocket Array 3990 | -7/Factory | System corruption reached 10% 4082 | -7/Factory | Discovered new exit (range 8) 4129 | -7/Factory | Entered another Factory area 4129 | -6/Factory | Evolved 2 slots: Utility x2 4157 | -6/Factory | Lost 6 parts (1p2n3u) 4377 | -6/Factory | Build established: Mutant 4592 | -6/Factory | Lost 3 parts (2n1u) 4600 | -6/Factory | Discovered new exit (range 16) 4604 | -6/Factory | Identified exit to Factory 4605 | -6/Factory | Entered another Factory area 4605 | -5/Factory | Evolved 2 slots: Power x1, Utility x1 4672 | -5/Factory | Sucked down chute 4672 | -5/Factory | Entered Waste 4673 | -5/Waste | Met a frightened Derelict 4673 | -5/Waste | Joined by Warlord forces that had cleared the area 4686 | -5/Waste | Lost 4 parts (1p2n1u) 4708 | -5/Waste | Discovered new exit (range 14) 4734 | -5/Waste | Identified exit to Factory 4870 | -5/Waste | A Compactor rumbled back to life 4870 | -5/Waste | Spotted C-40 Crusher 4871 | -5/Waste | Allies destroyed C-40 Crusher 5378 | -5/Waste | Entered Factory 5378 | -5/Factory | Accompanied by 21 allies 5760 | -5/Factory | Lost 4 allies 5817 | -5/Factory | Discovered new exit (range 14) 5918 | -5/Factory | Found Prototype Device 5918 | -5/Factory | Identified Active Sensor Suite 5923 | -5/Factory | Lost 3 allies 6027 | -5/Factory | Lost 4 allies 6190 | -5/Factory | Lost 7 allies 6232 | -5/Factory | Discovered new exit (range 15) 6239 | -5/Factory | Entered Upper Caves 6252 | -5/Upper Caves | Encountered a Warlord checkpoint 6252 | -5/Upper Caves | Lost 8 parts (1p2n3u2w) 6252 | -5/Upper Caves | Learned Factory trap positions 6410 | -5/Upper Caves | Learned 4 Factory zone layouts 6456 | -5/Upper Caves | Core integrity fell below 50% 6489 | -5/Upper Caves | Lost 10 parts (2p2n3u3w) 6653 | -5/Upper Caves | Spotted B-75 Beast 7137 | -5/Upper Caves | Discovered new exit (range 10) 7139 | -5/Upper Caves | Identified exit to Upper Caves 7140 | -5/Upper Caves | Entered another Upper Caves area 7170 | -5/Upper Caves | Spotted B-75 Beast 7176 | -5/Upper Caves | Encountered a Warlord checkpoint 7263 | -5/Upper Caves | Lost 3 allies 7608 | -5/Upper Caves | Core integrity fell below 20% 7624 | -5/Upper Caves | Destroyed by B-75 Beast with Magnetic Acceleration Cannon Last Messages --------------- 07364_ Found Hyp. Gauss Cannon. 07364_ Found Stasis Canceller. 07364_ Found Imp. Dynamic Insulation System. 07364_ Found 15 Matter. 07365_ Acquired 15 matter. 07433_ Searching scrap... 07433_ Found 21 Matter. 07433_ Found Imp. Sensor Array. 07433_ Found KE Penetrator. 07433_ Found 24 Matter. 07434_ Acquired 24 matter. 07434_ Acquired 7 matter. 07437_ Acquired Imp. Sensor Array. 07514_ Penetrated by Slug. 07514_ Slug penetrates Wall. 07584_ Penetrated by Slug. 07607_ Slug penetrates Wall. 07614_ Penetrated by Slug. 07623_ Slug penetrates Wall. [Achievement: Just Browsing] Map ----- +----------------------------------------------------+ | ##?### ## #??????????????????????????????? | | #?## #??????????????????????????????? | | #### #?#########????????????????????? | | ### #######?# #????????????????????? | | ##?# ######????# #????????????????????? | | ##?## #?# ##???# #????????????????????? | | ##?# #?# ##??# #????????????????????? | | #?# ##?# ##?# #????????????????????? | | #?# #??# ### #????????????####?#### | | ##?# #### % #????????##### ### | | ##?# ########### ## | | #?# "" | | #?######## #### | | #####???????# ##??## ## ######## ## | | #??????????" # #????# ####?????# "## | | ???????????" ## ##### #?????? "### | | ???????????" ?# ? ?????# ##?## | | ???????????##?# ????# ##???##### | | ???###???????? #???## ##????????? | | ??## ###????? ##?? #????????## | | ### ##???? ### # ###?? ??????### | | ## #??? #??# ######? ????### | | #??# #???# ### ## BB ????# # | | ##?###???## # BB ## ##??# ## | | ### ###?????#; % ####?# #?? | | ###?# ##?????# @ #????# ??? | | #???# ##???## ;# ### ???? | | #???# ##??# #### ##????? ????? | | ##??## #### #?######?????######## ?????? | | ##??## h ### ##??????????????# ?????? | | #???# ## ##????????????? ??????? | | #??## #### ##??????????? ???????? | | ##??# ####??# #?????????? ????????? | | ##??# #?????# #?????????? ????????? | | #### ##????## #????????? ?????????? | | ##????## ###???????????????????? | | ####??# ##?????????????????????? | | #### ##??????????????????????? | | ## ## #???????????????????????? | | ?## ### #???????????????????????? | | ??# ####?# ##???????????????????????? | | ??# ######????# #????????????????????????? | | ??## ##?????????## ##????????????????????????? | | ???#######???????????###?????????????????????????? | | ?????????????????????????????????????????????????? | | ?????????????????????????????????????????????????? | | ?????????????????????????????????????????????????? | | ?????????????????????????????????????????????????? | | ?????????????????????????????????????????????????? | | ?????????????????????????????????????????????????? | +----------------------------------------------------+ Best States ------------- Heat Dissipation 71 Energy Generation 28 Energy Capacity 310 Matter Stores 300 Matter Capacity 300 Sight Range 16 Robot Scan Range 20 Terrain Scan Range 16 Terrain Scan Density 210 Corruption Block 15 Armor Coverage 150 Resistance: EM 25 Core Shielding 20 Evasion (%) 63 Target Analysis 6 Recoil Reduction 2 Energy Filtering 30 Salvage Targeting 4 Offensive Hacking 10 Item Schematics ----------------- None Robot Schematics ------------------ None Fabricated ------------ Nothing Alien Tech Used ----------------- None Achievements -------------- Just Browsing Power Corrupts Slippery One The More The Merrier We Are Legion Challenges ------------ None Game ------ Seed ScrapNullDevice Manual? 0 Play Time 02:04:08 Cumulative 16.8 hours Start 2024.04.09 @ 16:42:42 End 2024.04.09 @ 19:07:02 Sessions 5 Manual Loads 0 Difficulty Rogue Special Mode None Game No. 25 Rogue 25 Adventurer 0 Explorer 0 Win Type - Total 0 Types 0/0/0/0/0/0/0/0/0 Lore% 18 Gallery% 25 Achievement% 18 Wizard Run 0 Options --------- Layout 0 ASCII 0 Keyboard 0 Movement Mouse Keybinds 0 Fullscreen 1 Font 24/Smallcaps Map View 76x50 Zoom Use 0% Tactical HUD 1 Map Filters NONE Filters NONE Steam 1 RUN: dc4e234b-f5e0-4c04-bb7b-6bdb696a025a